bitfinex/quotes_ETHUSD_20220213
["timestamp","ask_amount","ask_price","bid_price","bid_amount"]
[1644763111841,1.45956164,2923.2,2922.0,1.71085]
[1644763112036,1.45956164,2923.2,2922.3,1.7108]
[1644763112272,1.45573417,2923.1,2922.3,1.7108]
[1644763112475,0.00382747,2923.2,2922.3,2.0108]
[1644763112677,0.171,2923.4,2922.3,3.3107]
[1644763112678,1.45953843,2923.3,2922.3,3.3107]
[1644763112873,1.45953843,2923.3,2922.4,1.0]
[1644763112874,0.00382747,2923.3,2922.4,1.0]
[1644763113074,1.45573119,2923.4,2922.6,0.85532]
[1644763113274,1.45573119,2923.4,2922.6,1.15532]
[1644763113483,1.45573119,2923.4,2922.6,0.85532]
[1644763113680,0.01063704,2923.1,2922.6,0.85532]
[1644763113877,0.01063704,2923.1,2922.6,2.45532]
[1644763114081,0.01063704,2923.1,2922.8,0.85536]
[1644763114679,0.00382747,2923.3,2922.5,2.01064]
[1644763114881,0.00382747,2923.3,2922.5,1.96064]
[1644763114882,0.01041455,2923.1,2922.5,1.96064]
[1644763115086,1.01510284,2922.9,2922.6,0.85541]
[1644763115286,0.5,2922.7,2922.3,1.71079]
[1644763115478,0.5,2922.7,2922.1,0.25]
[1644763115680,1.02669,2922.6,2921.3,1.96122]
[1644763115882,1.02669,2922.6,2921.4,3.5]
[1644763116133,0.84383337,2922.4,2921.9,0.01041778]
[1644763116333,0.01041531,2922.5,2921.9,0.01041778]
[1644763116832,0.86612531,2922.5,2921.9,0.01041778]
[1644763117034,0.1711,2922.4,2921.3,3.5]
[1644763117231,0.1711,2922.4,2921.9,0.01021806]
[1644763117232,0.17492747,2922.4,2921.9,0.01021806]
[1644763117431,0.01021634,2922.3,2921.9,0.01021806]
[1644763118031,0.13514381,2922.5,2921.9,0.01021806]
[1644763118234,0.13131634,2922.5,2921.2,0.1711]
[1644763118433,0.00382747,2922.4,2921.5,0.85569]
[1644763118632,0.00382747,2922.4,2921.4,1.71134]
[1644763118633,0.01021648,2922.2,2921.9,0.01021785]
[1644763119433,1.07592707,2922.4,2921.4,1.71134]
[1644763119635,0.5,2922.7,2921.8,0.85563]
[1644763119636,0.17492747,2922.3,2921.8,0.85563]
[1644763119871,0.00382747,2922.5,2921.8,0.85563]
[1644763120072,0.1711,2922.4,2921.8,0.85563]
[1644763120270,7.48382747,2922.6,2921.8,0.85563]
[1644763120271,0.1711,2922.5,2921.8,0.85563]
[1644763121075,0.1711,2922.5,2921.8,1.85563]
[1644763121276,0.1711,2922.5,2922.0,0.85541]
[1644763121475,0.50382747,2922.7,2922.0,0.85541]
[1644763121678,0.50382747,2922.7,2922.0,2.15542]
[1644763121679,0.00382747,2922.7,2922.0,2.15542]
[1644763121878,0.00382747,2922.8,2922.1,3.47896361]
[1644763122088,0.01079114,2922.5,2922.1,3.94996361]
[1644763122278,0.01079114,2922.5,2922.2,1.3]
[1644763122478,0.01079114,2922.5,2922.3,0.171]
[1644763122680,0.01079114,2922.5,2922.4,0.85521]
[1644763122877,0.01079114,2922.5,2922.4,2.45521]
[1644763123082,0.00373441,2923.0,2922.4,1.6]
[1644763123281,0.171,2923.1,2922.5,3.57690311]
[1644763123282,0.01079099,2922.6,2922.5,3.57690311]
[1644763123553,0.17473441,2923.1,2922.4,1.77209129]
[1644763123752,0.17473441,2923.1,2922.7,0.85503]
[1644763123947,0.171,2923.1,2922.7,0.85503]
[1644763124147,0.171,2923.1,2922.7,2.15503]
[1644763124652,1.55266899,2922.6,2922.5,0.85542]
[1644763124848,1.55266899,2922.6,2922.4,0.85538]
[1644763125049,1.55266899,2922.6,2922.3,1.71042]
[1644763125251,1.55266899,2922.6,2922.3,0.3]
[1644763125252,1.50266899,2922.6,2922.3,0.3]
[1644763125653,1.50266899,2922.6,2922.1,0.3]
[1644763125850,1.50266899,2922.6,2922.1,0.471]
[1644763126054,1.50266899,2922.6,2922.3,0.6]
[1644763126256,1.50266899,2922.6,2922.4,0.3]
[1644763126453,1.50266899,2922.6,2922.1,0.3]
[1644763126953,1.50266899,2922.6,2922.4,0.85546]
[1644763127373,1.50266899,2922.6,2922.4,1.15546]
[1644763127780,1.50266899,2922.6,2922.4,0.85546]
[1644763130580,1.50266899,2922.6,2922.5,1.71055]
[1644763132229,1.50266899,2922.6,2922.5,2.71055]
[1644763132633,1.40266899,2922.6,2922.5,2.71055]
[1644763133833,1.40266899,2922.6,2922.5,1.71055]
[1644763134033,1.40266899,2922.6,2922.5,2.71055]
[1644763134436,1.40266899,2922.6,2922.5,2.88264129]
[1644763135281,1.40266899,2922.6,2922.5,3.05364129]
[1644763136784,0.01079065,2922.7,2922.6,24.59]
[1644763136986,0.04315182,2923.5,2922.9,20.74488]
[1644763137183,0.04315182,2923.5,2923.0,1.70987]
[1644763137384,0.04315182,2923.5,2923.0,3.48196129]
[1644763137583,0.00373441,2923.7,2923.0,3.48196129]
[1644763137785,1.45898534,2924.0,2923.0,3.48196129]
[1644763137984,0.04035807,2923.9,2923.1,0.85492]
[1644763138190,0.04035807,2923.9,2923.3,0.855]
[1644763138385,0.04035807,2923.9,2923.3,1.3]
[1644763138632,0.04035807,2923.9,2923.3,1.6]
[1644763139037,0.01046562,2923.7,2923.3,2.45496]
[1644763139243,0.04035807,2923.9,2923.3,2.45496]
[1644763139244,0.04035807,2923.9,2923.6,4.55]
[1644763139434,0.04035807,2923.9,2923.8,19.89]
[1644763139833,0.04035807,2923.9,2923.8,21.19]
[1644763140037,0.00373441,2924.3,2923.8,21.49]
[1644763140234,0.00373441,2924.5,2923.9,0.85469]
[1644763140534,1.45875976,2924.6,2923.9,2.15469]
[1644763140736,1.45502535,2924.5,2923.9,1.3]
[1644763140934,1.45502535,2924.4,2923.9,1.3]
[1644763141137,0.00373441,2924.7,2923.9,0.3]
[1644763141336,0.00373441,2924.7,2923.6,1.3]
[1644763141535,0.89798464,2924.7,2923.6,1.6]
[1644763141734,0.89798464,2924.7,2923.2,2.81492]
[1644763141937,0.171,2924.6,2923.2,2.81492]
[1644763142139,0.89714862,2924.2,2923.2,2.81492]
[1644763142385,1.4587759,2924.1,2922.6,0.171]
[1644763142583,1.45504149,2924.0,2922.9,1.71029]
[1644763142779,5.0,2923.8,2922.9,1.71029]
[1644763142982,1.4587759,2923.7,2922.5,0.4779]
[1644763143184,7.48,2923.6,2922.5,0.2279]
[1644763143382,0.00373441,2923.5,2922.5,0.2279]
[1644763143581,0.85544,2923.4,2922.5,0.2279]
[1644763143786,1.45931899,2923.3,2923.0,0.01081452]
[1644763143985,1.45558458,2923.3,2923.0,0.01081452]
[1644763144184,1.45558458,2923.4,2923.0,0.01081452]
[1644763144387,0.97425947,2923.1,2923.0,0.01081452]
[1644763144585,0.97425947,2923.1,2922.5,0.2279]
[1644763144788,0.45579999,2922.4,2922.0,1.88183]
[1644763145188,0.45579999,2922.4,2922.0,0.171]
[1644763146227,0.45579999,2922.4,2922.1,0.0108159]
[1644763147029,0.45579999,2922.4,2922.0,0.171]
[1644763147230,0.45579999,2922.4,2921.9,2.56602]
[1644763147449,0.45579999,2922.4,2922.1,0.01081583]
[1644763147632,0.45579999,2922.4,2922.1,0.86635583]
[1644763147832,0.45579999,2922.4,2922.1,1.72181583]
[1644763148031,0.45579999,2922.4,2922.1,2.32181583]
[1644763148232,0.45579999,2922.4,2922.1,2.311]
[1644763148632,0.45579999,2922.4,2922.2,0.85538]
[1644763148832,0.45579999,2922.4,2922.2,1.85538]
[1644763149877,0.45579999,2922.4,2922.2,1.86619575]
[1644763150486,0.45579999,2922.4,2922.2,0.01081575]
[1644763150683,0.45579999,2922.4,2921.8,1.71105]
[1644763151082,0.45579999,2922.4,2922.2,0.01081575]
[1644763151883,0.45579999,2922.4,2922.1,0.85549]
[1644763152084,0.45579999,2922.4,2922.2,0.01081575]
[1644763153084,0.45579999,2922.4,2921.7,1.71103]
[1644763153290,0.45579999,2922.4,2922.2,0.01081575]
[1644763154335,0.45579999,2922.4,2921.8,0.3]
[1644763154533,0.45579999,2922.4,2922.2,0.01081575]
[1644763155534,0.45579999,2922.4,2921.8,1.7111]
[1644763155733,0.45579999,2922.4,2922.2,0.01081575]
[1644763156636,0.45579999,2922.4,2921.9,0.3]
[1644763156939,0.45579999,2922.4,2922.2,0.86632575]
[1644763157136,0.45579999,2922.4,2922.2,1.16632575]
[1644763157397,0.45579999,2922.4,2922.2,1.46632575]
[1644763157999,0.45579999,2922.4,2922.2,1.45551]
[1644763158197,0.45579999,2922.4,2922.2,1.46632575]
[1644763158400,0.45579999,2922.4,2922.2,2.46632575]
[1644763159001,0.45579999,2922.4,2922.2,2.45551]
[1644763159399,0.45579999,2922.4,2922.2,2.46632575]
[1644763159606,0.45579999,2922.4,2922.3,3.55064991]
[1644763159804,0.45579999,2922.4,2922.3,1.0]
[1644763160011,0.45579999,2922.4,2922.3,4.67990915]
[1644763160208,0.45579999,2922.4,2922.3,1.0]
[1644763160408,0.45579999,2922.4,2922.2,2.45551]
[1644763160608,0.45579999,2922.4,2922.2,2.46632567]
[1644763161438,0.45579999,2922.4,2922.2,2.62760129]
[1644763161834,0.45579999,2922.4,2922.2,22.52841704]
[1644763162238,0.45579999,2922.4,2922.2,2.63841704]
[1644763162634,0.45579999,2922.4,2922.2,2.62760129]
[1644763162835,0.45579999,2922.4,2922.3,0.171]
[1644763163637,0.00373441,2923.6,2922.5,0.85511]
[1644763163837,1.45914028,2923.6,2922.8,0.85511]
[1644763164037,1.45914028,2923.6,2922.8,1.45511]
[1644763164338,1.96750439,2923.6,2922.9,0.0108146]
[1644763164538,1.45540587,2923.5,2922.9,0.0108146]
[1644763164983,1.45540587,2923.5,2922.9,0.8659146]
[1644763165176,1.45540587,2923.5,2923.0,0.6]
[1644763165376,1.45540587,2923.5,2923.1,0.85515]
[1644763165985,1.45540587,2923.5,2923.1,1.85515]
[1644763166180,2.84133387,2923.6,2923.1,4.72015]
[1644763166381,2.84133387,2923.6,2923.2,1.02622]
[1644763166582,2.84133387,2923.6,2923.2,1.32622]
[1644763166583,2.32923535,2923.6,2923.2,1.32622]
[1644763166783,2.32923535,2923.6,2923.2,3.03612]
[1644763166982,2.32923535,2923.6,2923.3,0.85495]
[1644763167183,2.32923535,2923.6,2923.4,1.88083]
[1644763167389,2.32923535,2923.6,2923.4,2.30983]
[1644763168082,0.18181208,2923.8,2923.5,0.85488]
[1644763168290,0.18181208,2923.8,2923.6,1.70971]
[1644763168729,0.171,2923.8,2923.6,3.00971]
[1644763168926,0.18181252,2923.8,2923.6,3.00971]
[1644763169939,0.171,2923.8,2923.7,0.85485]
[1644763170132,0.18181252,2923.8,2923.7,1.15485]
[1644763170331,0.01081252,2923.8,2923.7,2.15485]
[1644763171232,0.00373441,2924.5,2923.9,1.15487]
[1644763171432,2.37247503,2924.6,2924.0,0.85493]
[1644763171632,0.00373441,2924.5,2924.1,0.6]
[1644763171834,0.04323968,2924.6,2924.1,0.6]
[1644763172286,0.00373441,2924.8,2923.5,1.0]
[1644763172489,1.4586135,2924.8,2924.4,0.85483]
[1644763172687,0.01081152,2924.5,2924.3,1.0126195]
[1644763172886,0.01081152,2924.5,2924.3,0.3]
[1644763173286,0.01081152,2924.5,2924.1,0.3]
[1644763173589,3.33283926,2924.7,2924.0,1.7098]
[1644763173590,0.00374208,2924.6,2924.0,1.7098]
[1644763173787,0.01081144,2924.5,2924.0,2.0098]
[1644763174184,0.01081144,2924.5,2924.1,0.85494]
[1644763175189,0.01081144,2924.5,2924.2,0.01530378]
[1644763175386,0.01081144,2924.5,2924.2,0.87023378]
[1644763175591,0.01081144,2924.5,2924.2,1.72515378]
[1644763175791,0.01081144,2924.5,2924.2,1.17022378]
[1644763176061,0.01081144,2924.5,2924.2,0.31530378]
[1644763176230,0.01081144,2924.5,2924.2,0.01530378]
[1644763176632,0.01081144,2924.5,2924.3,1.70979]
[1644763176833,0.01081144,2924.5,2924.3,2.00979]
[1644763177031,0.01081144,2924.5,2924.4,2.00961]
[1644763177235,9.81702814,2925.0,2924.4,2.00961]
[1644763177433,1.45478794,2924.9,2924.4,2.00961]
[1644763177632,2.37247462,2925.0,2924.5,0.8547]
[1644763177835,2.37247462,2925.0,2924.5,2.1547]
[1644763178032,0.04323927,2925.0,2924.6,1.70921]
[1644763178231,0.04323927,2925.0,2924.6,2.00921]
[1644763178435,0.04323927,2925.0,2924.6,4.71807]
[1644763178631,0.04323927,2925.0,2924.7,1.70904]
[1644763178833,0.04323927,2925.0,2924.8,0.3]
[1644763179034,0.04323927,2925.0,2924.8,0.6]
[1644763179877,0.04323927,2925.0,2924.8,1.45449]
[1644763180490,6.5821,2926.1,2925.1,19.89]
[1644763180491,0.1708,2926.1,2925.1,19.89]
[1644763180692,0.1708,2926.1,2925.3,24.89]
[1644763180885,0.1708,2926.1,2925.5,0.85408]
[1644763181085,0.00398576,2926.6,2925.7,22.94]
[1644763181284,0.00398576,2926.6,2925.8,1.1708]
[1644763181485,0.00398576,2926.6,2925.7,20.0608]
[1644763181689,0.00398576,2926.6,2925.9,2.56224]
[1644763181883,0.00398576,2926.6,2925.9,2.73304]
[1644763182084,0.00398576,2926.6,2926.2,0.85419]
[1644763182589,0.00398576,2926.6,2926.2,1.45419]
[1644763182884,0.00398576,2926.6,2926.2,2.30836]
[1644763184740,0.00398576,2926.6,2926.2,1.15419]
[1644763184939,0.00398576,2926.6,2926.1,0.70629494]
[1644763185137,1.45441566,2926.5,2926.1,0.70629494]
[1644763185338,0.00398576,2926.6,2926.1,1.56059494]
[1644763185744,0.00398576,2926.6,2926.2,0.85417]
[1644763186138,0.00398576,2926.6,2926.2,1.15417]
[1644763186344,0.00797152,2926.6,2926.2,2.30829]
[1644763186541,0.00797152,2926.6,2926.2,0.3]
[1644763186739,0.00797152,2926.6,2926.3,0.17209129]
[1644763187139,0.00797152,2926.6,2926.3,1.70831]
[1644763187381,0.00797152,2926.6,2926.4,0.85407]
[1644763187582,0.00797152,2926.6,2926.5,1.70815]
[1644763188183,0.00797152,2926.6,2926.5,2.30815]
[1644763188387,0.00797152,2926.6,2926.5,1.70815]
[1644763188784,0.00797152,2926.6,2926.3,0.8543]
[1644763189389,0.00797152,2926.6,2925.5,1.02526]
[1644763189589,1.62495382,2926.5,2925.5,0.1708]
[1644763189787,3.50591406,2926.4,2925.5,0.1708]
[1644763189987,0.00375397,2926.4,2925.5,0.1708]
[1644763190187,1.45794094,2926.4,2925.5,0.1708]
[1644763190392,3.5643748,2926.3,2925.5,0.1708]
[1644763190591,0.00375397,2926.2,2925.5,0.1708]
[1644763190897,0.01082874,2926.1,2925.5,0.1708]
[1644763191155,0.01082874,2926.1,2925.5,1.0253]
[1644763191555,0.00375397,2926.4,2925.5,1.02523]
[1644763191753,0.01082897,2925.9,2925.5,0.1708]
[1644763192155,0.01082897,2925.9,2925.6,0.85448]
[1644763192555,0.01082897,2925.9,2925.5,0.1708]
[1644763192754,0.00375397,2926.4,2925.4,1.61221729]
[1644763192957,0.01082905,2925.9,2925.4,1.61221729]
[1644763193153,0.01082905,2925.9,2925.6,0.85444]
[1644763193356,0.01082905,2925.9,2925.6,1.15444]
[1644763193558,0.00375397,2926.4,2925.6,1.45444]
[1644763193559,0.00375456,2926.4,2925.6,1.45444]
[1644763193757,0.00375456,2926.4,2925.6,2.30878]
[1644763194980,0.00375456,2926.4,2925.8,0.85444]
[1644763195183,0.00375456,2926.4,2925.8,1.45444]
[1644763195380,0.00375456,2926.4,2925.9,5.33112388]
[1644763195581,0.00797152,2926.6,2925.9,5.50192388]
[1644763195781,0.00797152,2926.6,2925.9,1.87899]
[1644763196086,0.00797152,2926.6,2926.0,0.8541]
[1644763196285,0.00797152,2926.6,2926.1,0.3]
[1644763196485,0.00797152,2926.6,2926.1,2.0085]
[1644763196687,0.00797152,2926.6,2926.1,1.7085]
[1644763196884,0.01594304,2926.6,2926.1,1.7085]
[1644763197085,0.01594304,2926.6,2926.2,0.85426]
[1644763197284,0.01594304,2926.6,2926.2,1.45426]
[1644763197883,0.01594304,2926.6,2926.2,1.46508949]
[1644763197884,0.01082804,2926.5,2926.2,1.46508949]
[1644763198744,2.07136725,2927.3,2926.2,1.45419]
[1644763198934,0.1708,2927.1,2926.5,0.85415]
[1644763199135,1.45399372,2927.0,2926.5,1.15415]
[1644763199333,1.45399372,2926.9,2926.5,1.15415]
[1644763199535,1.45399372,2926.8,2926.5,0.85415]
[1644763199734,0.21410237,2927.2,2926.2,0.01082938]
[1644763199735,0.02650466,2926.6,2926.2,0.01082938]
[1644763199935,0.02650466,2926.6,2925.8,1.02525]
[1644763200239,1.45402499,2926.5,2926.2,0.01083002]
[1644763200435,0.02650466,2926.6,2926.2,0.01083002]
[1644763200835,0.02650466,2926.6,2926.2,1.71943002]
[1644763201242,0.02650466,2926.6,2926.3,0.6]
[1644763201437,0.01082804,2926.5,2926.3,0.6]
[1644763201637,0.01082804,2926.5,2926.2,0.01082949]
[1644763202288,0.8647914,2926.5,2926.2,0.01082949]
[1644763202490,0.03248847,2926.1,2925.7,0.25]
[1644763202689,1.45414914,2926.0,2925.2,2.5631]
[1644763202890,0.03248847,2926.1,2925.3,0.1708]
[1644763203089,1.45423724,2926.0,2925.4,1.70893]
[1644763203292,1.45423724,2926.0,2925.4,2.56343]
[1644763203689,0.03248847,2926.1,2925.4,2.56343]
[1644763203893,0.03248847,2926.1,2925.6,0.01083022]
[1644763204492,0.03248847,2926.1,2925.7,2.56307]
[1644763204891,1.45413334,2926.0,2925.7,2.56307]
[1644763205092,1.45413334,2926.0,2925.7,1.71951998]
[1644763205892,0.03248847,2926.1,2925.7,1.71951998]
[1644763206140,0.03248847,2926.1,2925.7,0.01050509]
[1644763206341,1.45414085,2926.0,2925.7,0.01050509]
[1644763206551,0.03248847,2926.1,2925.7,0.86493509]
[1644763206744,0.03248847,2926.1,2925.7,3.17308509]
[1644763207140,0.03248847,2926.1,2925.8,1.85408]
[1644763207543,0.03248847,2926.1,2925.8,2.71867502]
[1644763207741,0.03248847,2926.1,2925.9,0.1708]
[1644763207940,0.03248847,2926.1,2925.9,1.87938]
[1644763208140,4.0282058,2927.1,2926.1,1.70848]
[1644763208141,2.69326879,2927.1,2926.1,1.70848]
[1644763208342,1.45382,2927.0,2926.1,1.70848]
[1644763208541,0.00376324,2926.9,2926.2,2.86224]
[1644763208741,1.45758324,2926.9,2926.2,3.71648]
[1644763208942,1.45758324,2927.2,2926.3,1.70844]
[1644763209144,1.45382,2927.1,2926.3,2.00844]
[1644763209342,0.1708,2927.3,2926.4,0.85422]
[1644763209343,1.45758324,2927.0,2926.4,0.85422]
[1644763209542,1.45382,2926.9,2926.4,0.85422]
[1644763209782,0.00376324,2927.2,2926.4,0.85422]
[1644763209783,1.46408404,2926.8,2926.4,1.45422]
[1644763209983,1.45382,2926.7,2926.4,1.45422]
[1644763210585,1.45382,2926.7,2926.5,1.70833]
[1644763210785,1.45382,2926.7,2925.9,2.86253]
[1644763210987,1.45382,2926.7,2925.9,0.3]
[1644763211188,1.45758324,2926.6,2925.9,0.6]
[1644763211387,1.1708,2927.3,2925.6,0.1708]
[1644763211388,1.45382,2926.5,2926.2,0.01026598]
[1644763211587,0.00376324,2926.5,2926.2,0.01026598]
[1644763211794,1.45381576,2926.6,2926.2,1.46462598]
[1644763211987,1.45381576,2926.6,2926.2,0.86462598]
[1644763212187,0.01026435,2926.5,2926.2,0.86462556]
[1644763212588,1.45385231,2926.4,2926.2,0.01026556]
[1644763212889,2.15,2926.3,2926.0,0.16810065]
[1644763213088,0.01026435,2926.5,2925.8,0.85446]
[1644763213291,1.45388399,2926.4,2925.8,0.85446]
[1644763213570,0.96186624,2926.1,2925.4,0.25]
[1644763213758,0.96186624,2926.1,2925.1,0.1708]
[1644763213962,0.00376324,2926.0,2924.7,0.1708]
[1644763214157,0.00376324,2926.0,2925.5,0.85455]
[1644763214360,1.45398252,2926.5,2925.5,0.85455]
[1644763214559,0.00376324,2926.4,2925.5,0.85455]
[1644763214758,0.00999012,2926.4,2925.5,0.85455]
[1644763214959,1.45398252,2926.3,2925.5,1.15455]
[1644763215259,2.43057166,2926.3,2925.4,1.65878]
[1644763215458,1.45774576,2926.2,2925.4,1.65878]
[1644763215660,1.45774576,2926.2,2925.7,0.85444]
[1644763215860,1.45398252,2926.1,2925.7,0.85444]
[1644763216058,1.45398252,2926.3,2925.7,0.85444]
[1644763216260,0.00622794,2926.4,2925.7,0.85444]
[1644763216261,1.45398252,2926.2,2925.7,0.85444]
[1644763216462,0.00622794,2926.4,2925.7,0.85444]
[1644763216661,0.00622794,2926.4,2925.8,0.85445]
[1644763216864,0.00376324,2926.7,2925.9,0.85435]
[1644763217065,0.01082766,2926.4,2926.0,3.51715686]
[1644763217286,0.01082766,2926.4,2926.0,0.47209129]
[1644763217688,0.01082766,2926.4,2926.0,0.3]
[1644763217886,0.01082766,2926.4,2926.1,0.85422]
[1644763218091,1.06526314,2927.1,2926.1,1.70834]
[1644763218389,0.01082798,2926.4,2926.1,0.01082943]
[1644763218988,0.01082798,2926.4,2926.2,0.85433]
[1644763219188,0.00376324,2926.9,2926.2,0.85433]
[1644763219189,1.45384861,2926.3,2926.2,0.85433]
[1644763219393,0.00376324,2926.9,2926.2,0.6]
[1644763219589,0.0105457,2926.4,2926.2,0.6]
[1644763219789,1.45384397,2926.3,2926.1,0.31054712]
[1644763220392,1.45384397,2926.3,2926.1,1.15431]
[1644763220593,0.00376324,2926.9,2926.2,0.85434]
[1644763220792,0.01054559,2926.4,2926.2,1.15434]
[1644763221039,1.45385902,2926.3,2926.2,1.15434]
[1644763221842,0.01018978,2926.4,2926.2,1.15434]
[1644763222058,1.45385902,2926.3,2926.2,0.85434]
[1644763222946,2.09855124,2926.9,2926.2,0.85434]
[1644763223147,0.00986435,2926.4,2926.1,0.00986567]
[1644763223347,1.45385902,2926.3,2926.1,0.00986567]
[1644763223947,1.45385902,2926.3,2925.8,0.19091508]
[1644763224148,1.45385902,2926.2,2926.1,2.56288]
[1644763224348,0.00986425,2926.4,2926.1,2.57274558]
[1644763224550,1.45385902,2926.3,2926.2,0.0201893]
[1644763225383,0.00562571,2926.4,2926.2,0.8743793]
[1644763225585,1.45385902,2926.3,2926.2,0.8743793]
[1644763226590,1.45385902,2926.5,2926.2,0.8743793]
[1644763226791,0.00562571,2926.4,2926.2,0.8743793]
[1644763226992,1.45385902,2926.3,2926.2,0.8743793]
[1644763227793,1.45385902,2926.3,2926.2,0.0201893]
[1644763228399,1.45385902,2926.3,2925.3,3.83027678]
[1644763228400,1.45385902,2926.3,2925.3,0.1708]
[1644763228643,0.00376324,2926.2,2925.1,1.87996]
[1644763228848,0.00376324,2926.2,2925.3,0.85461]
[1644763229041,0.64092898,2926.2,2925.5,0.85446]
[1644763229240,1.64469222,2926.3,2925.7,0.01045854]
[1644763229444,0.00376324,2926.1,2925.7,0.01045854]
[1644763229641,1.45385902,2926.1,2925.7,0.01045854]
[1644763229844,1.45385902,2926.0,2925.7,0.01045854]
[1644763230045,1.45385902,2925.9,2925.7,1.70889]
[1644763230245,1.45385902,2925.8,2925.7,7e-05]
[1644763231246,2.45385902,2925.8,2925.7,7e-05]
[1644763231445,3.094788,2925.8,2925.7,7e-05]
[1644763231844,8.094788,2925.8,2925.7,7e-05]
[1644763232044,2.45385902,2925.8,2925.7,7e-05]
[1644763232501,3.09765051,2925.8,2925.7,7e-05]
[1644763232697,2.09765051,2925.8,2925.7,7e-05]
[1644763232897,4.7,2925.7,2925.0,0.24927]
[1644763233097,2.38954112,2925.6,2924.5,1.70944]
[1644763233298,2.38954112,2925.6,2924.6,1.02553]
[1644763233501,2.38954112,2925.6,2924.4,0.1708]
[1644763233502,1.45385902,2925.5,2924.4,0.1708]
[1644763233798,1.45385902,2925.5,2925.0,0.01021183]
[1644763234001,2.30865902,2925.5,2925.0,0.01021183]
[1644763234200,1.45385902,2925.4,2925.0,0.01021183]
[1644763234398,1.45385902,2925.5,2925.0,0.01021183]
[1644763234799,1.45385902,2925.5,2924.8,0.3]
[1644763235001,1.45385902,2925.5,2925.1,0.01038253]
[1644763235398,1.45385902,2925.5,2925.1,0.86501253]
[1644763235599,1.45385902,2925.5,2925.1,0.81501253]
[1644763236645,1.45385902,2925.5,2924.8,1.70926]
[1644763236842,1.45385902,2925.5,2924.3,0.1708]
[1644763237747,1.45385902,2925.5,2924.9,0.85469]
[1644763238748,1.45385902,2925.5,2925.0,0.01084145]
[1644763239548,0.93635663,2925.1,2925.0,0.01084145]
[1644763239799,3.75509152,2925.1,2925.0,4.156e-05]
[1644763239990,1.45450848,2925.1,2925.0,4.156e-05]
[1644763240189,7.92530848,2925.1,2925.0,4.156e-05]
[1644763240396,8.22530848,2925.1,2925.0,4.156e-05]
[1644763240893,0.85501,2925.0,2924.2,0.25]
[1644763241097,0.86924729,2924.4,2923.9,0.1708]
[1644763241793,1.72440729,2924.4,2923.9,0.1708]
[1644763242194,1.72440729,2924.4,2923.9,0.1208]
[1644763242394,4.38363383,2924.3,2923.9,0.1208]
[1644763242596,4.38363383,2924.3,2923.3,0.85515]
[1644763242597,5.23882383,2924.3,2923.3,0.85515]
[1644763242797,1.07299423,2923.8,2923.3,0.85515]
[1644763243397,1.07299423,2923.8,2923.1,0.1708]
[1644763243638,1.07299423,2923.8,2923.4,0.01084367]
[1644763244242,3.325,2923.7,2923.4,0.01084367]
[1644763244441,3.325,2923.7,2922.7,0.171]
[1644763244641,3.52425625,2923.9,2922.7,0.171]
[1644763244841,1.0,2923.8,2922.7,0.85525]
[1644763245041,1.0,2923.8,2922.8,0.171]
[1644763245241,5.57206538,2924.2,2922.8,2.73655]
[1644763245242,1.0,2924.0,2922.8,2.73655]
[1644763245441,1.0,2923.8,2922.8,2.73655]
[1644763245643,1.0,2924.0,2922.8,1.02628]
[1644763245840,1.133428,2923.6,2922.8,1.88149]
[1644763246242,1.133428,2923.6,2922.8,1.02628]
[1644763246442,1.133428,2923.6,2922.9,0.85525]
[1644763246845,1.133428,2923.6,2922.9,1.71043]
[1644763247045,1.133428,2923.6,2922.9,0.85518]
[1644763247293,2.133428,2923.6,2922.9,0.85518]
[1644763247783,2.133428,2923.6,2923.1,0.85518]
[1644763247985,0.99924077,2923.1,2922.8,0.171]
[1644763248189,0.99924077,2923.1,2922.3,0.171]
[1644763248385,0.99924077,2923.1,2922.7,0.04338488]
[1644763248986,0.8555,2923.0,2922.7,0.04338488]
[1644763249185,0.8555,2923.0,2922.1,0.171]
[1644763249386,1.16877774,2922.6,2922.1,0.171]
[1644763249587,1.16877774,2922.6,2922.3,0.04076631]
[1644763249989,1.0,2923.0,2922.3,0.04076631]
[1644763250187,3.38489782,2922.9,2922.3,0.04076631]
[1644763250387,3.38489782,2922.9,2922.0,0.8554]
[1644763250791,3.38489782,2922.9,2922.5,0.01019044]
[1644763251038,1.13477247,2923.0,2922.5,0.01019044]
[1644763251245,0.171,2923.4,2922.5,0.01019044]
[1644763251448,0.171,2923.4,2922.5,0.86540044]
[1644763251643,3.796,2923.7,2922.6,0.171]
[1644763251844,3.796,2923.7,2922.8,0.01018997]
[1644763252042,3.796,2923.7,2922.9,0.171]
[1644763252241,1.1553315,2923.5,2922.9,0.171]
[1644763252443,1.1553315,2923.5,2922.9,1.02606]
[1644763252647,1.1553315,2923.5,2922.8,0.01018997]
[1644763252845,1.1553315,2923.5,2922.5,0.3]
[1644763253049,1.1553315,2923.5,2923.1,0.01018958]
[1644763253547,4.45792627,2923.5,2923.1,0.01018958]
[1644763253749,1.0,2923.4,2923.1,0.01018958]
[1644763253954,3.6884473,2923.3,2923.1,0.01018958]
[1644763254149,3.6884473,2923.3,2922.6,0.04076442]
[1644763254150,1.10453794,2922.8,2922.1,3.42115]
[1644763254349,0.171,2923.4,2923.1,0.01023332]
[1644763254350,1.0,2923.2,2923.1,0.01023332]
[1644763254550,1.0,2923.5,2923.1,0.01023332]
[1644763254796,0.171,2923.3,2923.1,0.01023332]
[1644763254986,3.41332796,2923.4,2923.1,0.01023332]
[1644763255286,3.41332796,2923.4,2922.1,1.88168]
[1644763255486,0.95506436,2922.9,2922.7,0.04093942]
[1644763256493,0.95506436,2922.9,2922.1,0.171]
[1644763256892,1.81059436,2922.9,2922.7,0.01023403]
[1644763257291,0.171,2923.1,2922.7,0.01023403]
[1644763257691,0.171,2923.1,2922.3,0.171]
[1644763257891,0.171,2923.1,2922.0,1.171]
[1644763258091,0.171,2923.1,2922.4,0.85527]
[1644763258294,0.171,2923.1,2922.6,0.8553]
[1644763258841,0.171,2923.1,2922.7,0.171]
[1644763259039,0.171,2923.1,2922.7,1.0262]
[1644763259439,0.171,2923.1,2922.8,0.85521]
[1644763259637,0.171,2923.1,2922.9,0.171]
[1644763259839,0.296,2923.7,2922.9,0.171]